fUST/lending_fUST_20240921
["ID","MTS","AMOUNT","RATE_DAILY","PERIOD"]
[338674825,1726864252443,-438.83,0.00015097,2]
[338674826,1726864252453,-500.0,0.00015097,2]
[338674827,1726864252462,-500.0,0.00015097,2]
[338674828,1726864252472,-500.0,0.00015097,2]
[338674829,1726864252482,-200.0,0.00015097,2]
[338674830,1726864252491,-500.0,0.00015097,2]
[338674831,1726864252501,-573.87,0.00015097,2]
[338674832,1726864252510,-2.38814597,0.00015097,2]
[338674833,1726864252528,-534.68185403,0.00015097,2]
[338674834,1726864252537,-313.50786554,0.00015097,2]
[338674835,1726864252553,-186.49213446,0.00015097,2]
[338674836,1726864252562,-500.0,0.00015097,2]
[338674837,1726864252572,-500.0,0.00015097,2]
[338674838,1726864252582,-500.0,0.00015097,2]
[338674839,1726864252591,-262.58572452,0.00015097,2]
[338674840,1726864252601,-500.0,0.00015097,2]
[338674841,1726864252611,-500.0,0.00015097,2]
[338674842,1726864252625,-500.0,0.00015097,2]
[338674843,1726864252634,-500.0,0.00015097,2]
[338674844,1726864252643,-500.0,0.00015097,2]
[338674845,1726864252652,-500.0,0.00015097,2]
[338674846,1726864252661,-500.0,0.00015097,2]
[338674847,1726864252672,-607.18,0.00015097,2]
[338674848,1726864252681,-500.0,0.00015097,2]
[338674849,1726864252691,-500.0,0.00015097,2]
[338674850,1726864252701,-287.73218939,0.00015097,2]
[338674851,1726864252711,-500.0,0.00015097,2]
[338674852,1726864252721,-500.0,0.00015097,2]
[338674853,1726864252730,-500.0,0.00015097,2]
[338674854,1726864252740,-609.52,0.00015097,2]
[338674855,1726864252750,-172.58,0.00015097,2]
[338674856,1726864252760,-162.02,0.00015097,2]
[338674857,1726864252770,-500.0,0.00015097,2]
[338674858,1726864252780,-500.0,0.00015097,2]
[338674859,1726864252790,-500.0,0.00015097,2]
[338674860,1726864252799,-500.0,0.00015097,2]
[338674861,1726864252809,-500.0,0.00015097,2]
[338674862,1726864252818,-500.0,0.00015097,2]
[338674863,1726864252828,-500.0,0.00015097,2]
[338674864,1726864252838,-500.0,0.00015097,2]
[338674865,1726864252847,-335.73,0.00015097,2]
[338674866,1726864252859,-500.0,0.00015097,2]
[338674867,1726864252873,-347.85724891,0.00015097,2]
[338674868,1726864252883,-500.0,0.00015097,2]
[338674869,1726864252892,-500.0,0.00015097,2]
[338674870,1726864252902,-500.0,0.00015097,2]
[338674871,1726864252913,-500.0,0.00015097,2]
[338674872,1726864252923,-500.0,0.00015097,2]
[338674873,1726864252933,-500.0,0.00015097,2]
[338674874,1726864252945,-500.0,0.00015097,2]
[338674875,1726864252955,-150.112233,0.000151,2]
[338674876,1726864252965,-500.0,0.00015108,2]
[338674877,1726864252975,-500.0,0.00015108,2]
[338674878,1726864252984,-500.0,0.00015108,2]
[338674879,1726864252994,-500.0,0.00015108,2]
[338674880,1726864253003,-500.0,0.00015108,2]
[338674881,1726864253013,-500.0,0.00015108,2]
[338674882,1726864253023,-500.0,0.00015108,2]
[338674883,1726864253033,-430.72399219,0.00015108,2]
[338674884,1726864253042,-500.0,0.00015108,2]
[338674885,1726864253052,-802.35,0.00015108,2]
[338674886,1726864253062,-500.0,0.00015108,2]
[338674887,1726864253071,-500.0,0.00015108,2]
[338674888,1726864253081,-500.0,0.00015108,2]
[338674889,1726864253090,-500.0,0.00015108,2]
[338674890,1726864253101,-500.0,0.00015108,2]
[338674891,1726864253111,-500.0,0.00015108,2]
[338674892,1726864253120,-500.0,0.00015108,2]
[338674893,1726864253130,-500.0,0.00015108,2]
[338674894,1726864253140,-500.0,0.00015108,2]
[338674895,1726864253149,-500.0,0.00015108,2]
[338674896,1726864253158,-500.0,0.00015108,2]
[338674897,1726864253168,-500.0,0.00015108,2]
[338674898,1726864253178,-354.44,0.00015108,2]
[338674899,1726864253187,-500.0,0.00015108,2]
[338674900,1726864253197,-161.37,0.00015108,2]
[338674901,1726864253207,-500.0,0.00015108,2]
[338674902,1726864253216,-186.87156028,0.00015108,2]
[338674903,1726864253226,-500.0,0.00015108,2]
[338674904,1726864253235,-544.2,0.00015108,2]
[338674905,1726864253245,-408.21,0.00015108,2]
[338674906,1726864253255,-500.0,0.00015108,2]
[338674907,1726864253264,-500.0,0.00015108,2]
[338674908,1726864253274,-500.0,0.00015108,2]
[338674909,1726864253284,-500.0,0.00015108,2]
[338674910,1726864253294,-500.0,0.00015108,2]
[338674911,1726864253303,-500.0,0.00015108,2]
[338674912,1726864253313,-500.0,0.00015108,2]
[338674913,1726864253323,-500.0,0.00015108,2]
[338674914,1726864253332,-500.0,0.00015108,2]
[338674915,1726864253342,-338.77414826,0.00015108,2]
[338674916,1726864253352,-500.0,0.00015108,2]
[338674917,1726864253362,-298.46684654,0.00015108,2]
[338674918,1726864253371,-500.0,0.00015108,2]
[338674919,1726864253381,-500.0,0.00015108,2]
[338674920,1726864253391,-500.0,0.00015108,2]
[338674921,1726864253401,-500.0,0.00015108,2]
[338674922,1726864253411,-500.0,0.00015108,2]
[338674923,1726864253421,-500.0,0.00015108,2]
[338674924,1726864253431,-500.0,0.00015108,2]
[338674925,1726864253440,-500.0,0.00015108,2]
[338674926,1726864253450,-500.0,0.00015108,2]
[338674927,1726864253460,-500.0,0.00015108,2]
[338674928,1726864253469,-500.0,0.00015108,2]
[338674929,1726864253478,-500.0,0.00015108,2]
[338674930,1726864253487,-500.0,0.00015108,2]
[338674931,1726864253497,-500.0,0.00015108,2]
[338674932,1726864253507,-500.0,0.00015108,2]
[338674933,1726864253517,-369.45105848,0.00015108,2]
[338674934,1726864253527,-150.112233,0.000153,2]
[338674935,1726864253537,-500.0,0.0001535,2]
[338674936,1726864253547,-500.0,0.0001535,2]
[338674937,1726864253557,-535.86,0.0001535,2]
[338674938,1726864253567,-500.0,0.0001535,2]
[338674939,1726864253577,-500.0,0.0001535,2]
[338674940,1726864253586,-500.0,0.0001535,2]
[338674941,1726864253596,-500.0,0.0001535,2]
[338674942,1726864253606,-493.80268069,0.0001535,2]
[338674943,1726864253615,-285.03746517,0.0001535,2]
[338674944,1726864253624,-500.0,0.0001535,2]
[338674945,1726864253635,-33956.45881861,0.00015359,2]
[338674946,1726864253794,-500.0,0.00014529,2]
[338674947,1726864253804,-501.20205329,0.00014529,2]
[338674948,1726864253813,-149.02856283,0.00014532,2]
[338674949,1726864253825,-350.97143717,0.00014532,2]
[338674950,1726864253835,-500.0,0.00014532,2]
[338674951,1726864253845,-500.0,0.00014536,2]
[338674952,1726864253855,-310.45512931,0.00014536,2]
[338674953,1726864253882,-189.54487069,0.00014536,2]
[338674954,1726864253892,-256.12229053,0.00014536,2]
[338674955,1726864253904,-243.87770947,0.00014536,2]
[338674956,1726864253915,-500.0,0.00014549,2]
[338674957,1726864253924,-13409.26118139,0.00015359,2]
[338674958,1726864253935,-1064.81,0.00015359,2]
[338674959,1726864253945,-500.0,0.00015359,2]
[338674960,1726864253955,-500.0,0.00015359,2]
[338674961,1726864253965,-500.0,0.00015359,2]
[338674962,1726864253975,-637.94,0.00015359,2]
[338674963,1726864253984,-251.58,0.00015359,2]
[338674964,1726864253993,-347.2,0.00015359,2]
[338674965,1726864254003,-500.0,0.00015359,2]
[338674966,1726864254012,-500.0,0.00015359,2]
[338674967,1726864254022,-500.0,0.00015359,2]
[338674968,1726864254032,-228.71,0.00015359,2]
[338674969,1726864254042,-241.15,0.00015359,2]
[338674970,1726864254052,-500.0,0.00015359,2]
[338674971,1726864254062,-500.0,0.00015359,2]
[338674972,1726864254072,-500.0,0.00015359,2]
[338674973,1726864254082,-500.0,0.00015359,2]
[338674974,1726864254091,-518.38,0.0001536,2]
[338674975,1726864254102,-500.0,0.0001536,2]
[338674976,1726864254112,-500.0,0.0001536,2]
[338674977,1726864254122,-500.0,0.0001536,2]
[338674978,1726864254132,-380.66,0.0001536,2]
[338674979,1726864254141,-500.0,0.0001536,2]
[338674980,1726864254151,-500.0,0.0001536,2]
[338674981,1726864254160,-229.04,0.0001536,2]
[338674982,1726864254170,-400.29,0.0001536,2]
[338674983,1726864254179,-500.0,0.0001536,2]
[338674984,1726864254188,-500.0,0.0001536,2]
[338674985,1726864254197,-435.18,0.0001536,2]
[338674986,1726864254207,-500.0,0.0001536,2]
[338674987,1726864254216,-500.0,0.0001536,2]
[338674988,1726864254226,-500.0,0.0001536,2]
[338674989,1726864254235,-500.0,0.0001536,2]
[338674990,1726864254245,-500.0,0.0001536,2]
[338674991,1726864254254,-500.0,0.0001536,2]
[338674992,1726864254263,-424.91,0.0001536,2]
[338674993,1726864254273,-500.0,0.0001536,2]
[338674994,1726864254283,-500.0,0.0001536,2]
[338674995,1726864254292,-500.0,0.0001536,2]
[338674996,1726864254302,-500.0,0.0001536,2]
[338674997,1726864254311,-500.0,0.0001536,2]
[338674998,1726864254321,-474.54,0.0001536,2]
[338674999,1726864254330,-500.0,0.0001536,2]
[338675000,1726864254340,-278.35,0.0001536,2]
[338675001,1726864254349,-360.51,0.0001536,2]
[338675002,1726864254359,-500.0,0.0001536,2]
[338675003,1726864254368,-500.0,0.0001536,2]
[338675004,1726864254378,-500.0,0.0001536,2]
[338675005,1726864254387,-1567.56,0.0001536,2]
[338675006,1726864254396,-500.0,0.0001536,2]
[338675007,1726864254405,-500.0,0.0001536,2]
[338675008,1726864254415,-500.0,0.0001536,2]
[338675009,1726864254425,-500.0,0.0001536,2]
[338675010,1726864254434,-500.0,0.0001536,2]
[338675011,1726864254444,-500.0,0.0001536,2]
[338675012,1726864254454,-500.0,0.0001536,2]
[338675013,1726864254464,-500.0,0.0001536,2]
[338675014,1726864254473,-500.0,0.0001536,2]
[338675015,1726864254482,-500.0,0.0001536,2]
[338675016,1726864254491,-624.32812497,0.00015371,2]
[338675017,1726864254501,-478.69233862,0.00015371,2]
[338675018,1726864254512,-500.0,0.00015371,2]
[338675019,1726864254521,-500.0,0.00015371,2]
[338675020,1726864254530,-500.0,0.00015371,2]
[338675021,1726864254539,-342.64915197,0.00015371,2]
[338675022,1726864254548,-500.0,0.00015371,2]
[338675023,1726864254557,-500.0,0.00015371,2]
[338675024,1726864254567,-500.0,0.00015371,2]
[338675025,1726864254575,-500.0,0.00015371,2]
[338675026,1726864254584,-500.0,0.00015371,2]
[338675027,1726864254594,-500.0,0.00015371,2]
[338675028,1726864254603,-500.0,0.00015371,2]
[338675029,1726864254613,-500.0,0.00015371,2]
[338675030,1726864254622,-500.0,0.00015371,2]
[338675031,1726864254631,-500.0,0.00015371,2]
[338675032,1726864254641,-500.0,0.00015371,2]
[338675033,1726864254650,-500.0,0.00015371,2]
[338675034,1726864254659,-500.0,0.00015371,2]
[338675035,1726864254668,-500.0,0.00015371,2]
[338675036,1726864254678,-500.0,0.00015371,2]
[338675037,1726864254687,-500.0,0.00015371,2]
[338675038,1726864254697,-500.0,0.00015371,2]
[338675039,1726864254706,-500.0,0.00015371,2]
[338675040,1726864254715,-500.0,0.00015371,2]
[338675041,1726864254725,-500.0,0.00015371,2]
[338675042,1726864254735,-500.0,0.00015371,2]
[338675043,1726864254744,-183.93,0.00015371,2]
[338675044,1726864254753,-500.0,0.00015371,2]
[338675045,1726864254763,-500.0,0.00015371,2]
[338675046,1726864254808,-500.0,0.00015371,2]
[338675047,1726864254817,-500.0,0.00015371,2]
[338675048,1726864254826,-500.0,0.00015371,2]
[338675049,1726864254834,-500.0,0.00015371,2]
[338675050,1726864254843,-500.0,0.00015371,2]
[338675051,1726864254852,-500.0,0.00015371,2]
[338675052,1726864254863,-500.0,0.00015371,2]
[338675053,1726864254872,-500.0,0.00015371,2]
[338675054,1726864254881,-572.46,0.00015371,2]
[338675055,1726864254890,-500.0,0.00015371,2]
[338675056,1726864254899,-500.0,0.00015371,2]
[338675057,1726864254910,-607.97112031,0.00015371,2]
[338675058,1726864254919,-200.0,0.00015371,2]
[338675059,1726864254928,-481.65,0.00015371,2]
[338675060,1726864254938,-500.0,0.00015371,2]
[338675061,1726864254948,-500.0,0.00015371,2]
[338675062,1726864254958,-500.0,0.00015371,2]
[338675063,1726864254967,-500.0,0.00015371,2]
[338675064,1726864254976,-461.88,0.00015371,2]
[338675065,1726864254985,-500.0,0.00015371,2]
[338675066,1726864254993,-500.0,0.00015371,2]
[338675067,1726864255002,-500.0,0.00015371,2]
[338675068,1726864255011,-186.32,0.00015371,2]
[338675069,1726864255020,-500.0,0.00015371,2]
[338675070,1726864255030,-500.0,0.00015371,2]
[338675071,1726864255039,-500.0,0.00015371,2]
[338675072,1726864255048,-500.0,0.00015371,2]
[338675073,1726864255056,-500.0,0.00015371,2]
[338675074,1726864255065,-500.0,0.00015371,2]
[338675075,1726864255075,-500.0,0.00015371,2]
[338675076,1726864255084,-500.0,0.00015371,2]
[338675077,1726864255093,-231.9,0.00015371,2]
[338675078,1726864255102,-500.0,0.00015371,2]
[338675079,1726864255111,-516.51,0.00015371,2]
[338675080,1726864255120,-512.23,0.00015371,2]
[338675081,1726864255129,-183.56,0.00015371,2]
[338675082,1726864255138,-500.0,0.00015371,2]
[338675083,1726864255147,-500.0,0.00015371,2]
[338675084,1726864255156,-500.0,0.00015371,2]
[338675085,1726864255165,-500.0,0.00015382,2]
[338675086,1726864255175,-500.0,0.00015382,2]
[338675087,1726864255183,-500.0,0.00015382,2]
[338675088,1726864255192,-500.0,0.00015382,2]
[338675089,1726864255201,-500.0,0.00015382,2]
[338675090,1726864255210,-500.0,0.00015382,2]
[338675091,1726864255219,-283.28546886,0.00015382,2]
[338675092,1726864255229,-802.35,0.00015382,2]
[338675093,1726864255238,-500.0,0.00015382,2]
[338675094,1726864255246,-500.0,0.00015382,2]
[338675095,1726864255255,-500.0,0.00015382,2]
[338675096,1726864255265,-500.0,0.00015382,2]
[338675097,1726864255274,-500.0,0.00015382,2]
[338675098,1726864255283,-500.0,0.00015382,2]
[338675099,1726864255291,-500.0,0.00015382,2]
[338675100,1726864255300,-500.0,0.00015382,2]
[338675101,1726864255310,-500.0,0.00015382,2]
[338675102,1726864255318,-500.0,0.00015382,2]
[338675103,1726864255328,-500.0,0.00015382,2]
[338675104,1726864255336,-500.0,0.00015382,2]
[338675105,1726864255345,-500.0,0.00015382,2]
[338675106,1726864255354,-539.25,0.00015382,2]
[338675107,1726864255363,-500.0,0.00015382,2]
[338675108,1726864255372,-500.0,0.00015382,2]
[338675109,1726864255381,-500.0,0.00015382,2]
[338675110,1726864255390,-500.0,0.00015382,2]
[338675111,1726864255399,-500.0,0.00015382,2]
[338675112,1726864255408,-266.27,0.00015382,2]
[338675113,1726864255417,-500.0,0.00015382,2]
[338675114,1726864255426,-166.4,0.00015382,2]
[338675115,1726864255435,-500.0,0.00015382,2]
[338675116,1726864255444,-500.0,0.00015382,2]
[338675117,1726864255453,-500.0,0.00015382,2]
[338675118,1726864255462,-500.0,0.00015382,2]
[338675119,1726864255471,-150.112233,0.000154,2]
[338675120,1726864255480,-150.112233,0.000155,2]
[338675121,1726864255489,-150.112233,0.000155,2]
[338675122,1726864255497,-150.112233,0.000156,2]
[338675123,1726864255506,-500.0,0.00015624,2]
[338675124,1726864255516,-308.54,0.00015624,2]
[338675125,1726864255525,-535.86,0.00015624,2]
[338675126,1726864255534,-500.0,0.00015624,2]
[338675127,1726864255543,-500.0,0.00015624,2]
[338675128,1726864255552,-471.22,0.00015624,2]
[338675129,1726864255561,-500.0,0.00015624,2]
[338675130,1726864255570,-6746.46967439,0.00015633,2]
[338675131,1726864255584,-40619.25032561,0.00015633,2]
[338675132,1726864255593,-1064.81,0.00015633,2]
[338675133,1726864255602,-490.67733486,0.00015633,2]
[338675134,1726864255611,-469.38,0.00015633,2]
[338675135,1726864255620,-500.0,0.00015633,2]
[338675136,1726864255629,-273.58,0.00015633,2]
[338675137,1726864255638,-500.0,0.00015633,2]
[338675138,1726864255648,-500.0,0.00015633,2]
[338675139,1726864255657,-500.0,0.00015633,2]
[338675140,1726864255666,-500.0,0.00015633,2]
[338675141,1726864255676,-555.54,0.00015633,2]
[338675142,1726864255686,-500.0,0.00015633,2]
[338675143,1726864255694,-547.35,0.00015634,2]
[338675144,1726864255704,-500.0,0.00015634,2]
[338675145,1726864255713,-500.0,0.00015634,2]
[338675146,1726864255722,-500.0,0.00015634,2]
[338675147,1726864255731,-500.0,0.00015634,2]
[338675148,1726864255740,-500.0,0.00015634,2]
[338675149,1726864255749,-500.0,0.00015634,2]
[338675150,1726864255758,-500.0,0.00015634,2]
[338675151,1726864255767,-500.0,0.00015634,2]
[338675152,1726864255776,-500.0,0.00015634,2]
[338675153,1726864255785,-500.0,0.00015634,2]
[338675154,1726864255795,-500.0,0.00015634,2]
[338675155,1726864255804,-174.06,0.00015634,2]
[338675156,1726864255813,-638.44,0.00015634,2]
[338675157,1726864255821,-500.0,0.00015634,2]
[338675158,1726864255831,-500.0,0.00015634,2]
[338675159,1726864255841,-500.0,0.00015634,2]
[338675160,1726864255850,-500.0,0.00015634,2]
[338675161,1726864255859,-500.0,0.00015634,2]
[338675162,1726864255870,-203.47,0.00015634,2]
[338675163,1726864255879,-500.0,0.00015634,2]
[338675164,1726864255889,-480.88,0.00015634,2]
[338675165,1726864255898,-1567.56,0.00015634,2]
[338675166,1726864255907,-348.53,0.00015634,2]
[338675167,1726864255916,-508.33579154,0.00015634,2]
[338675168,1726864255926,-199.64,0.00015634,2]
[338675169,1726864255935,-500.0,0.00015634,2]
[338675170,1726864255945,-569.93,0.00015634,2]
[338675171,1726864255955,-547.22,0.00015634,2]
[338675172,1726864255964,-500.0,0.00015634,2]
[338675173,1726864255973,-500.0,0.00015634,2]
[338675174,1726864255983,-500.0,0.00015634,2]
[338675175,1726864255992,-500.0,0.00015634,2]
[338675176,1726864256001,-500.0,0.00015645,2]
[338675177,1726864256010,-500.0,0.00015645,2]
[338675178,1726864256020,-500.0,0.00015645,2]
[338675179,1726864256029,-500.0,0.00015645,2]
[338675180,1726864256038,-500.0,0.00015645,2]
[338675181,1726864256048,-500.0,0.00015645,2]
[338675182,1726864256057,-500.0,0.00015645,2]
[338675183,1726864256066,-500.0,0.00015645,2]
[338675184,1726864256076,-500.0,0.00015645,2]
[338675185,1726864256085,-591.88,0.00015645,2]
[338675186,1726864256094,-500.0,0.00015645,2]
[338675187,1726864256104,-500.0,0.00015645,2]
[338675188,1726864256113,-500.0,0.00015645,2]
[338675189,1726864256122,-242.01,0.00015645,2]
[338675190,1726864256132,-500.0,0.00015645,2]
[338675191,1726864256141,-500.0,0.00015645,2]
[338675192,1726864256150,-500.0,0.00015645,2]
[338675193,1726864256159,-500.0,0.00015645,2]
[338675194,1726864256168,-172.93,0.00015645,2]
[338675195,1726864256177,-500.0,0.00015645,2]
[338675196,1726864256187,-500.0,0.00015645,2]
[338675197,1726864256196,-500.0,0.00015645,2]
[338675198,1726864256206,-500.0,0.00015645,2]
[338675199,1726864256215,-212.06,0.00015645,2]
[338675200,1726864256224,-179.62,0.00015645,2]
[338675201,1726864256234,-500.0,0.00015645,2]
[338675202,1726864256243,-441.55,0.00015645,2]
[338675203,1726864256252,-500.0,0.00015645,2]
[338675204,1726864256261,-325.1,0.00015645,2]
[338675205,1726864256270,-500.0,0.00015645,2]
[338675206,1726864256280,-500.0,0.00015645,2]
[338675207,1726864256289,-399.79,0.00015645,2]
[338675208,1726864256298,-500.0,0.00015645,2]
[338675209,1726864256307,-536.79,0.00015645,2]
[338675210,1726864256316,-500.0,0.00015645,2]
[338675211,1726864256325,-200.0,0.00015645,2]
[338675212,1726864256334,-500.0,0.00015645,2]
[338675213,1726864256344,-500.0,0.00015645,2]
[338675214,1726864256354,-500.0,0.00015645,2]
[338675215,1726864256363,-500.0,0.00015645,2]
[338675216,1726864256372,-500.0,0.00015645,2]
[338675217,1726864256382,-500.0,0.00015645,2]
[338675218,1726864256391,-500.0,0.00015645,2]
[338675219,1726864256400,-500.0,0.00015645,2]
[338675220,1726864256409,-638.96100792,0.00015645,2]
[338675221,1726864256419,-407.54,0.00015645,2]
[338675222,1726864256428,-201.67,0.00015645,2]
[338675223,1726864256438,-375.59721205,0.00015645,2]
[338675224,1726864256447,-500.0,0.00015645,2]
[338675225,1726864256457,-500.0,0.00015645,2]
[338675226,1726864256466,-500.0,0.00015645,2]
[338675227,1726864256476,-500.0,0.00015645,2]
[338675228,1726864256485,-500.0,0.00015656,2]
[338675229,1726864256494,-500.0,0.00015656,2]
[338675230,1726864256503,-500.0,0.00015656,2]
[338675231,1726864256513,-500.0,0.00015656,2]
[338675232,1726864256522,-500.0,0.00015656,2]
[338675233,1726864256531,-500.0,0.00015656,2]
[338675234,1726864256540,-802.35,0.00015656,2]
[338675235,1726864256550,-500.0,0.00015656,2]
[338675236,1726864256559,-500.0,0.00015656,2]
[338675237,1726864256568,-500.0,0.00015656,2]
[338675238,1726864256577,-500.0,0.00015656,2]
[338675239,1726864256588,-500.0,0.00015656,2]
[338675240,1726864256597,-500.0,0.00015656,2]
[338675241,1726864256607,-500.0,0.00015656,2]
[338675242,1726864256616,-500.0,0.00015656,2]
[338675243,1726864256625,-500.0,0.00015656,2]
[338675244,1726864256634,-500.0,0.00015656,2]
[338675245,1726864256643,-500.0,0.00015656,2]
[338675246,1726864256652,-359.36514527,0.00015656,2]
[338675247,1726864256662,-500.0,0.00015656,2]
[338675248,1726864256671,-541.67,0.00015656,2]
[338675249,1726864256680,-500.0,0.00015656,2]
[338675250,1726864256690,-500.0,0.00015656,2]
[338675251,1726864256699,-500.0,0.00015656,2]
[338675252,1726864256708,-484.27,0.00015656,2]
[338675253,1726864256718,-500.0,0.00015656,2]
[338675254,1726864256728,-500.0,0.00015656,2]
[338675255,1726864256738,-500.0,0.00015656,2]
[338675256,1726864256747,-151.0,0.00015656,2]
[338675257,1726864256756,-151.0,0.00015656,2]
[338675258,1726864256766,-151.0,0.00015656,2]
[338675259,1726864256775,-150.112233,0.000157,2]
[338675260,1726864256785,-420.0,0.00015798,2]
[338675261,1726864256795,-420.0,0.00015869,2]
[338675262,1726864256804,-500.0,0.00015898,2]
[338675263,1726864256814,-535.86,0.00015898,2]
[338675264,1726864256823,-500.0,0.00015898,2]
[338675265,1726864256832,-500.0,0.00015898,2]
[338675266,1726864256843,-500.0,0.00015898,2]
[338675267,1726864256853,-150.112233,0.000159,2]
[338675268,1726864256864,-47365.72,0.00015907,2]
[338675269,1726864256877,-1064.81,0.00015907,2]
[338675270,1726864256887,-500.0,0.00015907,2]
[338675271,1726864256896,-561.85,0.00015907,2]
[338675272,1726864256906,-346.46,0.00015907,2]
[338675273,1726864256915,-500.0,0.00015907,2]
[338675274,1726864256925,-500.0,0.00015907,2]
[338675275,1726864256935,-500.0,0.00015907,2]
[338675276,1726864256945,-500.0,0.00015908,2]
[338675277,1726864256955,-500.0,0.00015908,2]
[338675278,1726864256964,-500.0,0.00015908,2]
[338675279,1726864256973,-500.0,0.00015908,2]
[338675280,1726864256982,-500.0,0.00015908,2]
[338675281,1726864256992,-500.0,0.00015908,2]
[338675282,1726864257001,-529.39,0.00015908,2]
[338675283,1726864257011,-471.35416098,0.00015908,2]
[338675284,1726864257021,-500.0,0.00015908,2]
[338675285,1726864257030,-585.14649232,0.00015908,2]
[338675286,1726864257039,-500.0,0.00015908,2]
[338675287,1726864257048,-500.0,0.00015908,2]
[338675288,1726864257058,-500.0,0.00015908,2]
[338675289,1726864257067,-500.0,0.00015908,2]
[338675290,1726864257077,-500.0,0.00015908,2]
[338675291,1726864257086,-500.0,0.00015908,2]
[338675292,1726864257095,-1567.56,0.00015908,2]
[338675293,1726864257105,-500.0,0.00015908,2]
[338675294,1726864257115,-500.0,0.00015908,2]
[338675295,1726864257124,-500.0,0.00015908,2]
[338675296,1726864257133,-500.0,0.00015908,2]
[338675297,1726864257143,-500.0,0.00015908,2]
[338675298,1726864257152,-500.0,0.00015919,2]
[338675299,1726864257161,-500.0,0.00015919,2]
[338675300,1726864257170,-194.48,0.00015919,2]
[338675301,1726864257179,-500.0,0.00015919,2]
[338675302,1726864257189,-500.0,0.00015919,2]
[338675303,1726864257198,-224.72,0.00015919,2]
[338675304,1726864257207,-500.0,0.00015919,2]
[338675305,1726864257216,-500.03222871,0.00015919,2]
[338675306,1726864257225,-253.29,0.00015919,2]
[338675307,1726864257234,-221.87,0.00015919,2]
[338675308,1726864257243,-500.0,0.00015919,2]
[338675309,1726864257253,-500.0,0.00015919,2]
[338675310,1726864257263,-255.14,0.00015919,2]
[338675311,1726864257273,-500.0,0.00015919,2]
[338675312,1726864257282,-500.0,0.00015919,2]
[338675313,1726864257292,-221.17,0.00015919,2]
[338675314,1726864257302,-477.52307908,0.00015919,2]
[338675315,1726864257311,-237.31607374,0.00015919,2]
[338675316,1726864257321,-500.0,0.00015919,2]
[338675317,1726864257331,-500.0,0.00015919,2]
[338675318,1726864257340,-500.0,0.00015919,2]
[338675319,1726864257349,-500.0,0.00015919,2]
[338675320,1726864257359,-500.0,0.00015919,2]
[338675321,1726864257368,-500.0,0.00015919,2]
[338675322,1726864257377,-222.47,0.00015919,2]
[338675323,1726864257387,-500.0,0.00015919,2]
[338675324,1726864257396,-200.0,0.00015919,2]